bitfinex-derivatives/quotes_BTCF0:USTF0_20210706
["timestamp","ask_amount","ask_price","bid_price","bid_amount"]
[1625577528787,1.06084632,34299.0,34293.0,1.15917544]
[1625577529834,0.72172632,34299.0,34293.0,1.15917544]
[1625577529934,0.48115088,34299.0,34293.0,1.15917544]
[1625577530035,0.24057544,34299.0,34293.0,1.15917544]
[1625577530133,1.68673543,34324.0,34293.0,1.15917544]
[1625577530235,0.1177,34328.0,34293.0,1.15917544]
[1625577530236,0.1177,34328.0,34294.0,0.057]
[1625577530237,1.6879369,34327.0,34294.0,0.057]
[1625577530333,1.6879369,34327.0,34294.0,0.06061807]
[1625577530533,0.03,34328.0,34306.0,0.24057544]
[1625577530534,0.24057544,34307.0,34306.0,0.24057544]
[1625577530633,0.18357544,34307.0,34306.0,0.53583544]
[1625577531838,0.24057544,34314.0,34306.0,0.53583544]
[1625577532590,0.24057544,34314.0,34313.0,0.48115088]
[1625577532691,0.24057544,34319.0,34313.0,0.70977088]
[1625577533441,0.24057544,34319.0,34316.0,3.6035]
[1625577534546,0.24057544,34323.0,34318.0,0.24057544]
[1625577536598,0.24057544,34323.0,34322.0,0.51651544]
[1625577539253,0.24057544,34326.0,34322.0,0.51651544]
[1625577540556,0.24057544,34326.0,34325.0,0.24057544]
[1625577549277,0.24057544,34326.0,34325.0,0.58153083]
[1625577550529,0.24057544,34326.0,34325.0,0.24057544]
[1625577551299,0.24057544,34330.0,34325.0,0.53417544]
[1625577551300,0.57845128,34330.0,34325.0,0.53417544]
[1625577551484,0.57845128,34330.0,34326.0,0.34133721]
[1625577551734,0.24057544,34330.0,34326.0,0.34133721]
[1625577552232,0.24057544,34330.0,34327.0,0.34133164]
[1625577552633,0.24057544,34330.0,34329.0,0.24057544]
[1625577553487,0.57852199,34330.0,34329.0,0.24057544]
[1625577553887,0.63552199,34330.0,34329.0,0.24057544]
[1625577554187,0.24057544,34330.0,34329.0,0.24057544]
[1625577554888,0.57906524,34330.0,34329.0,0.47075544]
[1625577555739,0.24057544,34330.0,34329.0,0.47075544]
[1625577558051,0.33817705,34331.0,34329.0,0.47075544]
[1625577558152,0.24057544,34333.0,34329.0,0.47075544]
[1625577558153,0.24057544,34333.0,34329.0,0.81219767]
[1625577558155,0.57823631,34333.0,34329.0,0.81219767]
[1625577558350,0.3375827,34332.0,34329.0,0.47075544]
[1625577558700,0.3375827,34332.0,34331.0,0.24057544]
[1625577560956,0.35283135,34332.0,34331.0,0.24057544]
[1625577561606,0.40983135,34332.0,34331.0,0.24057544]
[1625577561707,0.07224865,34332.0,34331.0,0.24057544]
[1625577561806,0.01524865,34332.0,34331.0,0.24057544]
[1625577562410,0.35324519,34332.0,34331.0,0.24057544]
[1625577562658,0.01524865,34332.0,34331.0,0.24057544]
[1625577563060,0.07224865,34332.0,34331.0,0.24057544]
[1625577563161,0.01524865,34332.0,34331.0,0.24057544]
[1625577563363,0.01524865,34332.0,34331.0,0.53185544]
[1625577567917,0.01524865,34332.0,34331.0,0.53546171]
[1625577568169,0.01524865,34332.0,34331.0,0.53185544]
[1625577569221,1.0311772,34332.0,34331.0,0.53185544]
[1625577570974,1.0311772,34332.0,34331.0,0.24057544]
[1625577572229,1.0881772,34332.0,34331.0,0.24057544]
[1625577573328,2.27474463,34332.0,34331.0,0.24057544]
[1625577574532,1.0881772,34332.0,34331.0,0.24057544]
[1625577574833,2.27510067,34332.0,34331.0,0.24057544]
[1625577577187,2.58321067,34332.0,34331.0,0.24057544]
[1625577577788,0.38035865,34332.0,34331.0,0.24057544]
[1625577577939,3.0983345,34332.0,34331.0,0.24057544]
[1625577578189,3.0983345,34332.0,34331.0,0.24418194]
[1625577578389,3.0983345,34332.0,34331.0,0.24057544]
[1625577579191,3.77725008,34332.0,34331.0,0.24057544]
[1625577579392,5.1342418,34332.0,34331.0,0.24057544]
[1625577579493,5.16865677,34332.0,34331.0,0.24057544]
[1625577579741,5.1342418,34332.0,34331.0,0.24057544]
[1625577579992,5.16865778,34332.0,34331.0,0.24057544]
[1625577584855,5.1342418,34332.0,34331.0,0.24057544]
[1625577585358,5.16865824,34332.0,34331.0,0.24057544]
[1625577586118,6.68914608,34332.0,34331.0,0.24057544]
[1625577586857,6.92972152,34332.0,34331.0,0.24057544]
[1625577587165,10.50882152,34332.0,34331.0,0.24057544]
[1625577587308,8.98833368,34332.0,34331.0,0.24057544]
[1625577587914,10.499049,34332.0,34331.0,0.24057544]
[1625577588360,8.98833368,34332.0,34331.0,0.24057544]
[1625577588961,8.95391724,34332.0,34331.0,0.24057544]
[1625577589312,10.46490665,34332.0,34331.0,0.24057544]
[1625577589761,10.4993256,34332.0,34331.0,0.24057544]
[1625577592269,10.46490665,34332.0,34331.0,0.24057544]
[1625577593377,10.49932549,34332.0,34331.0,0.24057544]
[1625577594623,10.46490665,34332.0,34331.0,0.24057544]
[1625577595776,10.49932673,34332.0,34331.0,0.24057544]
[1625577596779,10.49932673,34332.0,34329.0,0.24057544]
[1625577596880,0.24057544,34331.0,34329.0,0.24057544]
[1625577596980,6.25140178,34330.0,34329.0,0.24057544]
[1625577597332,6.26663175,34330.0,34329.0,0.24057544]
[1625577597834,6.30105405,34330.0,34329.0,0.24057544]
[1625577598235,1.61332174,34330.0,34329.0,0.24057544]
[1625577598435,7.95916228,34330.0,34329.0,0.24057544]
[1625577598636,7.95916228,34330.0,34325.0,0.24057544]
[1625577598938,6.47067329,34326.0,34325.0,0.24057544]
[1625577599189,6.48590575,34326.0,34325.0,0.24057544]
[1625577600896,6.48590575,34326.0,34322.0,0.51500099]
[1625577600993,6.72648119,34326.0,34322.0,0.171667]
[1625577601293,6.72648119,34326.0,34321.0,0.85834052]
[1625577601294,4.64478625,34323.0,34321.0,0.51502225]
[1625577601396,0.057,34322.0,34321.0,0.51502225]
[1625577601492,4.69367559,34322.0,34321.0,0.51502225]
[1625577601592,4.70890904,34322.0,34321.0,0.51502225]
[1625577601844,4.70890904,34322.0,34321.0,0.17168272]
[1625577601993,4.70890904,34322.0,34320.0,0.51485734]
[1625577602245,4.60347571,34321.0,34320.0,0.51485734]
[1625577602344,4.66047571,34321.0,34320.0,0.51485734]
[1625577602443,4.67570949,34321.0,34320.0,0.51485734]
[1625577602545,4.67570949,34321.0,34320.0,0.1716206]
[1625577602743,4.67570949,34321.0,34320.0,0.51486278]
[1625577602944,4.91628493,34321.0,34320.0,0.51486278]
[1625577603045,3.6010766,34321.0,34320.0,0.51486278]
[1625577603296,3.6010766,34321.0,34320.0,0.85806602]
[1625577603546,3.6010766,34321.0,34320.0,0.51479561]
[1625577603847,3.6010766,34321.0,34320.0,0.85789521]
[1625577604199,3.6010766,34321.0,34318.0,1.02972653]
[1625577604299,0.0876,34320.0,34316.0,1.20134762]
[1625577604509,0.0876,34320.0,34302.0,0.924]
[1625577604510,0.0876,34320.0,34312.0,0.12847537]
[1625577604511,3.44066046,34317.0,34312.0,0.12847537]
[1625577604602,0.057,34316.0,34312.0,0.07017537]
[1625577604702,0.3633,34316.0,34309.0,1.02945223]
[1625577604802,0.3633,34316.0,34302.0,2.12515751]
[1625577604803,3.92642401,34313.0,34302.0,2.12515751]
[1625577604904,5.1796,34304.0,34302.0,2.12515751]
[1625577605013,1.00709797,34303.0,34302.0,0.7942]
[1625577605102,1.00709797,34303.0,34302.0,0.2431]
[1625577605202,1.00709797,34303.0,34302.0,0.1261]
[1625577605305,2.15299322,34303.0,34302.0,0.1261]
[1625577605402,2.16823553,34303.0,34302.0,0.1261]
[1625577605603,2.16823553,34303.0,34295.0,0.9614]
[1625577605903,2.15299322,34303.0,34295.0,0.9614]
[1625577606256,1.14341483,34301.0,34295.0,0.9614]
[1625577606355,0.04479621,34300.0,34295.0,0.9614]
[1625577606558,1.18875063,34300.0,34295.0,0.9614]
[1625577606757,0.04479621,34300.0,34295.0,0.9614]
[1625577606959,1.18974352,34300.0,34295.0,0.9614]
[1625577607061,0.48115088,34296.0,34295.0,0.9614]
[1625577607160,0.79571709,34296.0,34295.0,0.9614]
[1625577613124,1.03629253,34296.0,34295.0,0.9614]
[1625577616937,0.76652253,34296.0,34295.0,0.9614]
[1625577617037,0.76652253,34296.0,34295.0,1.21635]
[1625577617138,0.72172632,34296.0,34295.0,1.21635]
[1625577617702,0.72172632,34296.0,34295.0,5.37065]
[1625577617890,0.72172632,34296.0,34295.0,1.21635]
[1625577618294,0.77872632,34296.0,34295.0,1.21635]
[1625577618394,0.77872632,34296.0,34295.0,0.9614]
[1625577618493,0.72172632,34296.0,34295.0,0.9614]
[1625577618694,0.72172632,34296.0,34295.0,1.18085]
[1625577619295,0.99592632,34296.0,34295.0,1.18085]
[1625577619648,1.05292632,34296.0,34295.0,1.18085]
[1625577619746,1.05292632,34296.0,34295.0,0.9614]
[1625577621306,0.72172632,34296.0,34295.0,0.9614]
[1625577625082,0.24057544,34303.0,34295.0,0.9614]
[1625577625165,0.24057544,34303.0,34302.0,0.48115088]
[1625577625274,0.24057544,34303.0,34302.0,0.79759088]
[1625577626157,0.24057544,34307.0,34302.0,0.79759088]
[1625577627211,0.24057544,34307.0,34306.0,0.24057544]
[1625577628061,0.29757544,34307.0,34306.0,0.24057544]
[1625577629113,0.31283476,34307.0,34306.0,0.24057544]
[1625577629415,0.25583476,34307.0,34306.0,0.24057544]
[1625577630168,0.31283476,34307.0,34306.0,0.24057544]
[1625577630669,0.25583476,34307.0,34306.0,0.24057544]
[1625577630970,0.31283476,34307.0,34306.0,0.24057544]
[1625577631973,0.25583476,34307.0,34306.0,0.47756544]
[1625577634029,0.31283476,34307.0,34306.0,0.47756544]
[1625577635235,0.5534102,34307.0,34306.0,0.23699]
[1625577635340,0.5534102,34307.0,34302.0,0.24057544]
[1625577635435,4.3709,34305.0,34302.0,0.24057544]
[1625577635785,0.01526014,34304.0,34302.0,0.24057544]
[1625577636286,4.3139,34305.0,34302.0,0.24057544]
[1625577637289,0.24057544,34303.0,34302.0,0.24057544]
[1625577638142,0.48115088,34307.0,34302.0,0.24057544]
[1625577638344,1.22305671,34311.0,34302.0,0.24057544]
[1625577638345,0.24057544,34311.0,34302.0,0.24057544]
[1625577638560,0.01533152,34310.0,34302.0,0.24057544]
[1625577639251,0.01533152,34310.0,34309.0,0.48115088]
[1625577639353,0.01533152,34310.0,34309.0,0.77811088]
[1625577640198,0.24057544,34311.0,34309.0,0.77811088]
[1625577640498,0.01533046,34310.0,34309.0,0.77811088]
[1625577640698,0.01533046,34310.0,34309.0,0.48115088]
[1625577641200,0.07233046,34310.0,34309.0,0.48115088]
[1625577641600,0.07233046,34310.0,34309.0,0.24057544]
[1625577641852,1.05739181,34310.0,34309.0,0.24057544]
[1625577642050,2.20556704,34310.0,34309.0,0.24057544]
[1625577642300,1.05739181,34310.0,34309.0,0.24057544]
[1625577642602,2.20532774,34310.0,34309.0,0.24057544]
[1625577643302,2.44590318,34310.0,34309.0,0.24057544]
[1625577644404,1.29796725,34310.0,34309.0,0.24057544]
[1625577644605,2.44488974,34310.0,34309.0,0.24057544]
[1625577646712,2.38788974,34310.0,34309.0,0.56404544]
[1625577646814,1.24096725,34310.0,34309.0,0.56404544]
[1625577647062,0.2559059,34310.0,34309.0,0.56404544]
[1625577649468,1.24320125,34310.0,34309.0,0.56404544]
[1625577649568,1.30020125,34310.0,34309.0,0.56404544]
[1625577649670,1.30020125,34310.0,34309.0,0.24057544]
[1625577650221,2.45299923,34310.0,34309.0,0.24057544]
[1625577651224,3.77090863,34310.0,34309.0,0.24057544]
[1625577651675,3.80535333,34310.0,34309.0,0.24057544]
[1625577653279,3.74835333,34310.0,34309.0,0.24057544]
[1625577653979,2.39599923,34310.0,34309.0,0.24057544]
[1625577654138,2.39599923,34310.0,34309.0,0.47843544]
[1625577654440,1.24320125,34310.0,34309.0,0.47843544]
[1625577655182,2.3993949,34310.0,34309.0,0.47843544]
[1625577655946,2.3993949,34310.0,34309.0,0.24057544]
[1625577657338,3.72526084,34310.0,34309.0,0.24057544]
[1625577658538,3.75970251,34310.0,34309.0,0.24057544]
[1625577658890,4.08145251,34310.0,34309.0,0.24057544]
[1625577659844,4.08145251,34310.0,34305.0,0.24057544]
[1625577660141,2.15281358,34306.0,34305.0,0.24057544]
[1625577660395,2.16818335,34306.0,34305.0,0.24057544]
[1625577661349,2.40875879,34306.0,34305.0,0.24057544]
[1625577661550,3.7335574,34306.0,34305.0,0.24057544]
[1625577661750,2.40875879,34306.0,34305.0,0.24057544]
[1625577663303,2.76589879,34306.0,34302.0,0.24057544]
[1625577663406,0.057,34302.0,34300.0,1.02816441]
[1625577663504,0.24057544,34303.0,34299.0,1.0290985]
[1625577663602,0.04982228,34302.0,34299.0,1.0290985]
[1625577663703,3.4703777,34300.0,34295.0,0.9614]
[1625577664004,3.46723834,34296.0,34295.0,0.9614]
[1625577664102,3.86040834,34296.0,34295.0,0.9614]
[1625577664302,4.52087724,34296.0,34295.0,0.9614]
[1625577664452,4.53625078,34296.0,34295.0,0.9614]
[1625577664704,4.57070773,34296.0,34295.0,0.9614]
[1625577664806,6.05539759,34296.0,34295.0,0.9614]
[1625577665405,6.77712391,34296.0,34295.0,0.9614]
[1625577665705,6.77712391,34296.0,34293.0,0.9024]
[1625577665809,6.74266696,34296.0,34293.0,0.9024]
[1625577666107,5.65766862,34294.0,34293.0,0.9024]
[1625577666308,5.67302962,34294.0,34293.0,0.9024]
[1625577666955,5.67302962,34294.0,34285.0,0.24057544]
[1625577667058,0.65846951,34286.0,34283.0,0.68581371]
[1625577667157,0.057,34285.0,34283.0,0.68581371]
[1625577667258,0.71513651,34285.0,34282.0,0.68583531]
[1625577667454,0.72172632,34283.0,34282.0,0.68583531]
[1625577667556,0.72172632,34283.0,34281.0,0.68580878]
[1625577667655,0.057,34282.0,34281.0,0.68580878]
[1625577667756,0.057,34282.0,34280.0,0.6858166]
[1625577667958,1.64298137,34281.0,34280.0,0.6858166]
[1625577668056,5.1837,34280.0,34279.0,0.08572843]
[1625577668266,5.1837,34280.0,34277.0,0.68582744]
[1625577668267,5.1837,34280.0,34278.0,0.68583581]
[1625577668457,5.84116133,34280.0,34279.0,0.0857321]
[1625577668957,5.84116133,34280.0,34278.0,0.08566233]
[1625577668958,5.1837,34280.0,34278.0,0.08566233]
[1625577669058,5.1267,34280.0,34278.0,0.08566233]
[1625577669258,5.1837,34280.0,34278.0,0.08566233]
[1625577669358,5.1837,34280.0,34276.0,1.58649864]
[1625577669359,5.1837,34280.0,34279.0,0.08566138]
[1625577669559,5.1837,34280.0,34278.0,0.08565514]
[1625577669762,0.08238249,34279.0,34278.0,0.08565514]
[1625577670074,0.08238249,34279.0,34276.0,1.5864411]
[1625577670075,5.1837,34280.0,34276.0,1.5864411]
[1625577670076,5.1837,34280.0,34277.0,0.08565941]
[1625577670077,5.84146159,34280.0,34277.0,0.08565941]
[1625577670362,0.057,34278.0,34277.0,0.08565941]
[1625577670612,0.057,34278.0,34276.0,0.98686265]
[1625577670813,0.08238188,34277.0,34276.0,0.98686265]
[1625577671019,0.057,34278.0,34276.0,0.98686265]
[1625577671020,0.13932866,34278.0,34276.0,0.9012]
[1625577671417,0.48115088,34277.0,34276.0,0.9012]
[1625577671517,0.53815088,34277.0,34276.0,0.9012]
[1625577672021,0.62048928,34277.0,34276.0,0.9012]
[1625577672922,0.53815088,34277.0,34276.0,0.9012]
[1625577676879,0.48115088,34277.0,34276.0,0.9012]
[1625577676979,0.53815088,34277.0,34276.0,0.9012]
[1625577678436,0.53815088,34277.0,34276.0,1.16566]
[1625577678532,0.48115088,34277.0,34276.0,1.16566]
[1625577679084,0.48115088,34277.0,34276.0,1.25107063]
[1625577679838,0.48115088,34277.0,34276.0,1.16566]
[1625577682640,0.48115088,34277.0,34276.0,1.25100874]
[1625577684041,0.48115088,34277.0,34276.0,1.16566]
[1625577684843,0.24057544,34283.0,34276.0,1.16566]
[1625577685243,0.08271463,34286.0,34276.0,1.16566]
[1625577685244,0.08271463,34286.0,34278.0,0.08531836]
[1625577685443,0.08276687,34289.0,34280.0,0.08531018]
[1625577685543,0.08276687,34289.0,34288.0,0.48115088]
[1625577685644,0.08276687,34289.0,34288.0,0.73634088]
[1625577685942,0.08282168,34290.0,34288.0,0.73634088]
[1625577686244,0.08283066,34291.0,34288.0,0.73634088]
[1625577686494,0.08285626,34292.0,34288.0,0.73634088]
[1625577686697,0.32340169,34293.0,34288.0,0.73634088]
[1625577687396,0.24057544,34293.0,34288.0,0.73634088]
[1625577687493,0.24057544,34293.0,34292.0,0.24057544]
[1625577687644,0.32347504,34293.0,34292.0,0.24057544]
[1625577687895,0.24057544,34293.0,34292.0,0.24057544]
[1625577690106,0.32334556,34293.0,34292.0,0.24057544]
[1625577690204,0.33872184,34293.0,34292.0,0.24057544]
[1625577690403,0.31295172,34293.0,34292.0,0.24057544]
[1625577690631,0.97394048,34293.0,34292.0,0.24057544]
[1625577691305,3.12311739,34293.0,34292.0,0.24057544]
[1625577691415,3.10774111,34293.0,34292.0,0.24057544]
[1625577691706,3.12311933,34293.0,34292.0,0.24057544]
[1625577692758,4.44308967,34293.0,34292.0,0.24057544]
[1625577692856,4.73889967,34293.0,34292.0,0.24057544]
[1625577692959,3.41892933,34293.0,34292.0,0.24057544]
[1625577694262,3.9144851,34293.0,34292.0,0.24057544]
[1625577695017,3.6186751,34293.0,34292.0,0.32687544]
[1625577695465,2.46143871,34293.0,34292.0,0.32687544]
[1625577696064,2.46143871,34293.0,34292.0,0.24057544]
[1625577696773,1.46949819,34293.0,34292.0,0.24057544]
[1625577697167,1.46949819,34293.0,34292.0,0.62833544]
[1625577697820,0.80850943,34293.0,34292.0,0.62833544]
[1625577698018,1.46924194,34293.0,34292.0,0.62833544]
[1625577698119,1.46924194,34293.0,34292.0,0.54073544]
[1625577698919,1.46924194,34293.0,34292.0,0.24057544]
[1625577699019,2.46062693,34293.0,34292.0,0.24057544]
[1625577699121,2.46062693,34293.0,34292.0,0.32817544]
[1625577699220,2.46062693,34293.0,34292.0,0.24057544]
[1625577699721,3.6172251,34293.0,34292.0,0.24057544]
[1625577700022,4.93903638,34293.0,34292.0,0.24057544]
[1625577702779,3.6172251,34293.0,34292.0,0.24057544]
[1625577703080,4.93948139,34293.0,34292.0,0.24057544]
[1625577703280,3.6172251,34293.0,34292.0,0.24057544]
[1625577704584,4.93922729,34293.0,34292.0,0.24057544]
[1625577706840,3.6172251,34293.0,34292.0,0.24057544]
[1625577707542,4.94131112,34293.0,34292.0,0.24057544]
[1625577707642,4.94131112,34293.0,34288.0,0.48115088]
[1625577707742,3.6779,34289.0,34288.0,0.48115088]
[1625577707842,5.88642175,34289.0,34288.0,0.48115088]
[1625577708143,5.90180208,34289.0,34288.0,0.48115088]
[1625577708544,6.20345208,34289.0,34288.0,0.48115088]
[1625577708745,7.36111493,34289.0,34288.0,0.48115088]
[1625577709596,7.60169037,34289.0,34288.0,0.48115088]
[1625577710550,7.54469037,34289.0,34288.0,0.48115088]
[1625577710648,7.60169037,34289.0,34288.0,0.48115088]
[1625577711100,6.44402752,34289.0,34288.0,0.48115088]
[1625577711351,7.60446503,34289.0,34288.0,0.48115088]
[1625577712502,6.44402752,34289.0,34288.0,0.48115088]
[1625577712602,6.14237752,34289.0,34288.0,0.48115088]
[1625577713503,7.30012363,34289.0,34288.0,0.48115088]
[1625577713953,8.62296024,34289.0,34288.0,0.48115088]
[1625577716862,4.94506024,34289.0,34288.0,0.48115088]
[1625577716959,4.88806024,34289.0,34288.0,0.48115088]
[1625577717071,4.88806024,34289.0,34288.0,0.80181088]
[1625577717273,3.56522363,34289.0,34288.0,0.80181088]
[1625577720015,3.56522363,34289.0,34288.0,0.48115088]
[1625577720416,4.89306995,34289.0,34288.0,0.48115088]
[1625577721670,5.11805995,34289.0,34288.0,0.48115088]
[1625577722371,5.17505995,34289.0,34288.0,0.48115088]
[1625577722673,5.20952331,34289.0,34288.0,0.48115088]
[1625577723325,6.7063912,34289.0,34288.0,0.48115088]
[1625577723873,6.67192784,34289.0,34288.0,0.48115088]
[1625577724325,6.61492784,34289.0,34288.0,0.48115088]
[1625577724728,5.11805995,34289.0,34288.0,0.48115088]
[1625577726432,6.62021341,34289.0,34288.0,0.48115088]
[1625577727384,5.11805995,34289.0,34288.0,0.48115088]
[1625577727486,4.89306995,34289.0,34288.0,0.48115088]
[1625577727585,6.39563994,34289.0,34288.0,0.48115088]
[1625577727835,4.89306995,34289.0,34288.0,0.48115088]
[1625577728035,6.39573998,34289.0,34288.0,0.48115088]
[1625577728537,4.89306995,34289.0,34288.0,0.48115088]
[1625577728987,4.95006995,34289.0,34288.0,0.48115088]
[1625577729287,6.48518171,34289.0,34288.0,0.48115088]
[1625577736601,6.48518171,34289.0,34285.0,0.08593664]
[1625577736701,6.48518171,34289.0,34285.0,0.07773664]
[1625577736998,6.48518171,34289.0,34282.0,0.92811223]
[1625577736999,0.057,34285.0,34282.0,0.5844632]
[1625577737199,1.31823421,34283.0,34282.0,0.24057544]
[1625577737299,6.09705977,34283.0,34282.0,0.24057544]
[1625577737399,6.36898977,34283.0,34282.0,0.24057544]
[1625577737600,6.40345697,34283.0,34282.0,0.24057544]
[1625577737701,6.4188359,34283.0,34282.0,0.24057544]
[1625577737804,6.65941134,34283.0,34282.0,0.24057544]
[1625577738210,6.62494414,34283.0,34282.0,0.24057544]
[1625577738412,6.56794414,34283.0,34282.0,0.24057544]
[1625577738509,6.62494414,34283.0,34282.0,0.24057544]
[1625577738659,5.14195125,34283.0,34282.0,0.24057544]
[1625577738759,4.92702125,34283.0,34282.0,0.24057544]
[1625577739665,4.92702125,34283.0,34282.0,0.58438424]
[1625577739768,4.87002125,34283.0,34282.0,0.58438424]
[1625577739864,4.87002125,34283.0,34282.0,1.10008948]
[1625577740064,4.87002125,34283.0,34282.0,1.44387423]
[1625577740665,4.62944581,34283.0,34282.0,1.44387423]
[1625577740764,4.62944581,34283.0,34282.0,1.44746003]
[1625577740865,3.3112116,34283.0,34282.0,2.47879777]
[1625577741066,2.15773607,34283.0,34282.0,3.68200351]
[1625577741565,2.15773607,34283.0,34282.0,5.05700471]
[1625577741566,1.16901922,34283.0,34282.0,5.05700471]
[1625577741767,2.16352371,34283.0,34282.0,3.68200351]
[1625577741868,2.16352371,34283.0,34282.0,3.92257895]
[1625577742318,3.32491644,34283.0,34282.0,3.92257895]
[1625577742468,3.32491644,34283.0,34282.0,4.24551895]
[1625577742568,2.16352371,34283.0,34282.0,4.24551895]
[1625577742819,1.16901922,34283.0,34282.0,5.62058613]
[1625577742971,2.16506648,34283.0,34282.0,4.24551895]
[1625577743269,2.16506648,34283.0,34282.0,5.62059449]
[1625577743470,1.16901922,34283.0,34282.0,5.62059449]
[1625577743672,2.16526319,34283.0,34282.0,4.24551895]
[1625577744626,3.32705129,34283.0,34282.0,4.24551895]
[1625577744877,3.32705129,34283.0,34282.0,3.04231321]
[1625577745128,2.16526319,34283.0,34282.0,4.24578237]
[1625577746527,2.22226319,34283.0,34282.0,4.24578237]
[1625577746629,2.22226319,34283.0,34282.0,1.68444967]
[1625577746631,5.04421565,34283.0,34282.0,1.68444967]
[1625577746878,5.04421565,34283.0,34282.0,0.48115088]
[1625577746978,4.98721565,34283.0,34282.0,0.48115088]
[1625577747079,5.04421565,34283.0,34282.0,0.99709262]
[1625577747379,6.53287103,34283.0,34282.0,0.48115088]
[1625577748229,6.53287103,34283.0,34279.0,0.8599793]
[1625577748330,6.53287103,34283.0,34278.0,1.10031796]
[1625577748529,3.47696073,34279.0,34278.0,1.10031796]
[1625577748629,4.63589246,34279.0,34278.0,1.10031796]
[1625577748781,4.63589246,34279.0,34278.0,0.75642095]
[1625577749034,4.65127361,34279.0,34278.0,1.4444943]
[1625577749334,4.70827361,34279.0,34278.0,1.4444943]
[1625577749533,4.70827361,34279.0,34278.0,1.1004622]
[1625577749782,4.70827361,34279.0,34278.0,0.58461669]
[1625577749883,4.94884905,34279.0,34278.0,0.58461669]
[1625577749983,4.94884905,34279.0,34278.0,1.10068662]
[1625577750284,4.89184905,34279.0,34278.0,0.58461669]
[1625577750686,4.94884905,34279.0,34278.0,0.58461669]
[1625577751240,4.94884905,34279.0,34278.0,1.44428923]
[1625577751486,4.94884905,34279.0,34278.0,1.10036405]
[1625577751687,4.94884905,34279.0,34278.0,0.75645278]
[1625577751787,4.89184905,34279.0,34278.0,0.75645278]
[1625577751946,4.89184905,34279.0,34278.0,1.44424289]
[1625577752746,3.62437929,34279.0,34278.0,2.47576861]
[1625577753490,4.95123911,34279.0,34278.0,1.44424289]
[1625577753590,4.89423911,34279.0,34278.0,1.44424289]
[1625577753691,3.56737929,34279.0,34278.0,2.47573254]
[1625577753892,3.56737929,34279.0,34278.0,1.44424289]
[1625577754391,4.89425568,34279.0,34278.0,1.44424289]
[1625577754944,3.62437929,34279.0,34278.0,2.47560154]
[1625577755043,3.56737929,34279.0,34278.0,2.47560154]
[1625577756495,3.32680385,34279.0,34278.0,2.47560154]
[1625577757798,3.38380385,34279.0,34278.0,2.47560154]
[1625577757997,3.32680385,34279.0,34278.0,2.71617698]
[1625577758401,2.16787212,34279.0,34278.0,2.71617698]
[1625577758649,2.16787212,34279.0,34278.0,3.9194466]
[1625577760751,3.32903291,34279.0,34278.0,2.71617698]
[1625577762607,2.16787212,34279.0,34278.0,3.91956048]
[1625577762815,3.33046939,34279.0,34278.0,2.71617698]
[1625577767671,3.33046939,34279.0,34278.0,3.91962004]
[1625577767672,2.16787212,34279.0,34278.0,3.91962004]
[1625577769824,0.16657212,34279.0,34278.0,3.91962004]
[1625577769930,0.15119097,34279.0,34278.0,3.92320684]
[1625577770027,1.15712481,34281.0,34278.0,3.92320684]
[1625577770126,0.24057544,34293.0,34278.0,6.84552775]
[1625577770127,1.15841023,34285.0,34278.0,6.84552775]
[1625577770327,1.32387377,34287.0,34278.0,6.84552775]
[1625577770328,1.32387377,34287.0,34284.0,2.578258]
[1625577770429,1.15896076,34288.0,34284.0,2.882598]
[1625577770630,1.15969651,34289.0,34287.0,1.20313516]
[1625577770830,1.16017423,34291.0,34288.0,1.20306199]
[1625577771132,1.16070134,34292.0,34290.0,1.20299321]
[1625577771533,0.01537669,34291.0,34290.0,1.20299321]
[1625577771981,0.01537669,34291.0,34290.0,1.92471953]
[1625577772281,1.16082256,34293.0,34290.0,1.92471953]
[1625577772583,1.16073043,34292.0,34290.0,0.72172632]
[1625577772784,1.17610653,34292.0,34290.0,0.72172632]
[1625577773034,1.17587264,34291.0,34290.0,0.72172632]
[1625577774041,2.50202304,34291.0,34290.0,0.72172632]
[1625577775588,7.71742304,34291.0,34290.0,0.72172632]
[1625577776593,7.77442304,34291.0,34290.0,0.72172632]
[1625577778295,7.71742304,34291.0,34290.0,0.72172632]
[1625577778645,7.77442304,34291.0,34290.0,0.72172632]
[1625577778845,7.71742304,34291.0,34290.0,0.72172632]
[1625577779295,7.70204686,34291.0,34290.0,0.72172632]
[1625577779396,6.37589646,34291.0,34290.0,1.06499632]
[1625577781502,1.16049646,34291.0,34290.0,1.06499632]
[1625577781802,1.49487415,34297.0,34290.0,1.06499632]
[1625577781804,1.161118,34292.0,34290.0,1.06499632]
[1625577782003,1.49487415,34297.0,34290.0,1.06499632]
[1625577782004,1.16201335,34295.0,34291.0,1.20166709]
[1625577782204,1.16201335,34295.0,34294.0,0.24057544]
[1625577782303,1.32799155,34297.0,34294.0,0.24057544]
[1625577782304,1.16280625,34297.0,34294.0,0.24057544]
[1625577782504,1.16229602,34298.0,34294.0,0.24057544]
[1625577782756,4.8733,34305.0,34294.0,0.24057544]
[1625577782757,1.16240275,34299.0,34294.0,0.24057544]
[1625577783055,1.16382832,34301.0,34296.0,1.20083031]
[1625577783454,1.16437014,34302.0,34296.0,1.20083031]
[1625577784156,1.16437014,34302.0,34301.0,0.48115088]
[1625577784256,1.16437014,34302.0,34301.0,0.79021088]
[1625577784455,1.17974462,34302.0,34301.0,0.79021088]
[1625577785357,0.01537448,34302.0,34301.0,0.79021088]
[1625577785456,1.1640455,34303.0,34301.0,0.79021088]
[1625577785558,1.16393738,34302.0,34301.0,0.79021088]
[1625577786307,1.16327588,34303.0,34301.0,0.79021088]
[1625577788216,1.16145644,34304.0,34301.0,0.79021088]
[1625577790473,1.16175314,34305.0,34301.0,0.79021088]
[1625577790774,1.16165844,34304.0,34301.0,0.79021088]
[1625577791627,1.16165844,34304.0,34301.0,0.48115088]
[1625577793083,1.21603023,34305.0,34301.0,0.48115088]
[1625577793379,1.15943257,34304.0,34301.0,0.48115088]
[1625577794530,1.21525592,34305.0,34301.0,0.48115088]
[1625577794781,0.057,34303.0,34301.0,0.48115088]
[1625577795182,1.15809888,34304.0,34301.0,0.48115088]
[1625577795483,1.15815488,34305.0,34301.0,0.48115088]
[1625577795733,1.1584508,34306.0,34301.0,0.48115088]
[1625577795883,1.15845339,34305.0,34301.0,0.48115088]
[1625577796134,1.17382259,34305.0,34301.0,0.48115088]
[1625577796236,1.17382259,34305.0,34304.0,0.24057544]
[1625577796386,0.057,34306.0,34304.0,0.24057544]
[1625577796387,1.21535645,34306.0,34304.0,0.24057544]
[1625577796738,0.01536919,34305.0,34304.0,0.24057544]
[1625577796939,1.17431962,34305.0,34304.0,0.24057544]
[1625577797340,1.23131962,34305.0,34304.0,0.24057544]
[1625577797992,1.26577678,34305.0,34304.0,0.24057544]
[1625577799094,1.20877678,34305.0,34304.0,0.24057544]
[1625577799295,0.04982635,34305.0,34304.0,0.24057544]
[1625577800096,0.10682635,34305.0,34304.0,0.24057544]
[1625577800298,1.10156029,34305.0,34304.0,0.24057544]
[1625577801148,2.26178148,34305.0,34304.0,0.24057544]